Workbook

Sheet 問題
B2: 問題5.2 活性汚泥による排水処理プロセスのシミュレーション [VBAでソルバーを使う]
B3: ばっき槽と沈澱槽からなる活性汚泥排水処理プロセスをシミュレーションしなさい。ばっき槽の混合状態は槽列モデルで表され、槽数はn=5とする。操作条件は、排水流量Q=280 m3 hr-1、反応装置体積V=1400 m3、リサイクル比=0.35、余剰汚泥排出率=0.09、流入汚泥濃度（MLVSS or MLSS）Xin=0 mg L-1, 流入基質濃度（BOD） Sin=200 mg L-1、流出汚泥濃度（MLVSS or MLSS）Xout=0 mg L-1である。モノー式における反応速度定数は、最大増殖速度m=0.2 hr-1, 基質飽和定数KS=150 mg L-1、増殖収率YX/S=(DX/DS)=0.5である。 ばっき槽および沈澱槽の活性汚泥と基質の濃度分布を求めなさい。

Sheet 実習
B2: パラメーター | F2: 計算結果 | L2: 残余関数
B3: 槽数 | C3: n [-] | D3: 5 | F3: i [-] | G3: Xi [g m-3] | H3: Si [g m-3] | I3: Xr [g m-3] | J3: Sr [g m-3] | L3: Xi | M3: Si | N3: Xr | O3: Sr
B4: 最大増殖速度 | C4: mm [h-1] | D4: 0.25 | F4: 1 | G4: 500 | H4: 200 | I4: 1000 | J4: 100 | L4: =$D$11*$D$8*$D$3/$D$12+$D$9*$D$11*$I$4*$D$3/$D$12-(1+$D$9)*$D$11*G4*$D$3/$D$12+$D$4*H4/($D$5+H4)*G4 -> -241.6666667 | M4: =$D$11*$D$10*$D$3/$D$12+$D$9*$D$11*$J$4*$D$3/$D$12-(1+$D$9)*$D$11*H4*$D$3/$D$12-$D$4*H4/($D$5+H4)*G4/$D$6 -> -201.6666667 | N4: =(1+$D$9)*$D$11*$G$8-$D$11*($D$9+$D$13)*$I$4-(1-$D$13)*$D$11*$D$7 -> 65800 | O4: =H8-J4 -> 100
B5: 基質飽和定数 | C5: Ks [g m-3] | D5: 100 | F5: 2 | G5: 500 | H5: 200 | L5: =(1+$D$9)*$D$11*(G4-G5)*$D$3/$D$12+$D$4*H5/($D$5+H5)*G5 -> 83.33333333 | M5: =(1+$D$9)*$D$11*(H4-H5)*$D$3/$D$12-$D$4*H5/($D$5+H5)*G5/$D$6 -> -166.6666667
B6: 増殖収率 | C6: YX/S [g g-1] | D6: 0.5 | F6: 3 | G6: 500 | H6: 200 | L6: =(1+$D$9)*$D$11*(G5-G6)*$D$3/$D$12+$D$4*H6/($D$5+H6)*G6 -> 83.33333333 | M6: =(1+$D$9)*$D$11*(H5-H6)*$D$3/$D$12-$D$4*H6/($D$5+H6)*G6/$D$6 -> -166.6666667 | O6: =ABS(SUM(L4:M8))+N4+O4 -> 66676.66667
B7: 流出汚泥濃度 | C7: Xout [g m-3] | D7: 0 | F7: 4 | G7: 500 | H7: 200 | L7: 83.33333333 | M7: -166.6666667
B8: 流入汚泥濃度 | C8: Xin [g m-3] | D8: 0 | F8: 5 | G8: 500 | H8: 200 | L8: 83.33333333 | M8: -166.6666667
B9: リサイクル比 | C9: a [-] | D9: 0.35
B10: 流入基質濃度 | C10: Sin [g m-3] | D10: 200
B11: 排水流量 | C11: Q [m3 h-1] | D11: 280
B12: 反応装置体積 | C12: V [m3] | D12: 1400
B13: 余剰汚泥排出率 | C13: w [-] | D13: 0.09
B15: 基質濃度 | C15: S [g m-3]
B16: 汚泥濃度 | C16: X [g m-3]

Sheet 解答
B2: パラメーター | F2: 計算結果 | L2: 残余関数
B3: 槽数 | C3: n [-] | D3: 5 | F3: i [-] | G3: Xi [g m-3] | H3: Si [g m-3] | I3: Xr [g m-3] | J3: Sr [g m-3] | L3: Xi | M3: Si | N3: Xr | O3: Sr
B4: 最大増殖速度 | C4: mm [h-1] | D4: 0.25 | F4: 1 | G4: 307.9159822 | H4: 94.22769685 | I4: 1080.974165 | J4: 5.424650384 | L4: =$D$11*$D$8*$D$3/$D$12+$D$9*$D$11*$I$4*$D$3/$D$12-(1+$D$9)*$D$11*G4*$D$3/$D$12+$D$4*H4/($D$5+H4)*G4 -> 2.847500014e-10 | M4: =$D$11*$D$10*$D$3/$D$12+$D$9*$D$11*$J$4*$D$3/$D$12-(1+$D$9)*$D$11*H4*$D$3/$D$12-$D$4*H4/($D$5+H4)*G4/$D$6 -> -5.695000027e-10 | N4: =(1+$D$9)*$D$11*$G$8-$D$11*($D$9+$D$13)*$I$4-(1-$D$13)*$D$11*$D$7 -> 0 | O4: =H8-J4 -> 0
B5: 基質飽和定数 | C5: Ks [g m-3] | D5: 100 | F5: 2 | G5: 328.8459863 | H5: 52.36768874 | L5: =(1+$D$9)*$D$11*(G4-G5)*$D$3/$D$12+$D$4*H5/($D$5+H5)*G5 -> 8.667271345e-10 | M5: =(1+$D$9)*$D$11*(H4-H5)*$D$3/$D$12-$D$4*H5/($D$5+H5)*G5/$D$6 -> -1.733454269e-09
B6: 増殖収率 | C6: YX/S [g g-1] | D6: 0.5 | F6: 3 | G6: 341.9650561 | H6: 26.12954914 | L6: =(1+$D$9)*$D$11*(G5-G6)*$D$3/$D$12+$D$4*H6/($D$5+H6)*G6 -> 1.543259742e-09 | M6: =(1+$D$9)*$D$11*(H5-H6)*$D$3/$D$12-$D$4*H6/($D$5+H6)*G6/$D$6 -> -3.08652659e-09 | O6: =ABS(SUM(L4:M8))+N4+O4 -> 5.499522615e-09
B7: 流出汚泥濃度 | C7: Xout [g m-3] | D7: 0 | F7: 4 | G7: 348.9603609 | H7: 12.13893956 | L7: 1.612464828e-09 | M7: -3.224847944e-09
B8: 流入汚泥濃度 | C8: Xin [g m-3] | D8: 0 | F8: 5 | G8: 352.3175055 | H8: 5.424650384 | L8: 1.192379528e-09 | M8: -2.384775044e-09
B9: リサイクル比 | C9: a [-] | D9: 0.35
B10: 流入基質濃度 | C10: Sin [g m-3] | D10: 200
B11: 排水流量 | C11: Q [m3 h-1] | D11: 280
B12: 反応装置体積 | C12: V [m3] | D12: 1400
B13: 余剰汚泥排出率 | C13: w [-] | D13: 0.09
B15: 基質濃度 | C15: S [g m-3]
B16: 汚泥濃度 | C16: X [g m-3]
